[Event "Live Chess"]
[Site "Chess.com"]
[Date "2024.06.01"]
[Round "-"]
[White "FlyingChessKestrel13"]
[Black "jimwad"]
[Result "1-0"]
[WhiteElo "2069"]
[BlackElo "1296"]
[TimeControl "300"]
[EndTime "14:07:01 PDT"]
[Termination "FlyingChessKestrel13 won by resignation"]

1. e4 {[%clk 0:04:57.6]} 1... e5 {[%clk 0:04:59.5]} 2. Nf3 {[%clk 0:04:56.8]}
2... Nc6 {[%clk 0:04:58.6]} 3. Bb5 {[%clk 0:04:56.2]} 3... Nf6 {[%clk
0:04:57.6]} 4. d3 {[%clk 0:04:54.9]} 4... d6 {[%clk 0:04:54.9]} 5. O-O {[%clk
0:04:53.7]} 5... Bd7 {[%clk 0:04:53.9]} 6. c4 {[%clk 0:04:52.9]} 6... a6 {[%clk
0:04:51.5]} 7. Ba4 {[%clk 0:04:51.8]} 7... Be7 {[%clk 0:04:49.6]} 8. Nc3 {[%clk
0:04:51.2]} 8... O-O {[%clk 0:04:48.2]} 9. Nd5 {[%clk 0:04:50.4]} 9... Nxd5
{[%clk 0:04:46.7]} 10. cxd5 {[%clk 0:04:49.7]} 10... Na7 {[%clk 0:04:43.2]} 11.
Bxd7 {[%clk 0:04:48.6]} 11... Qxd7 {[%clk 0:04:42]} 12. d4 {[%clk 0:04:47.9]}
12... Bf6 {[%clk 0:04:38.8]} 13. dxe5 {[%clk 0:04:46.5]} 13... Bxe5 {[%clk
0:04:37.5]} 14. Nxe5 {[%clk 0:04:45.7]} 14... dxe5 {[%clk 0:04:36.6]} 15. a4
{[%clk 0:04:44.9]} 15... Nc8 {[%clk 0:04:33.9]} 16. Be3 {[%clk 0:04:43.7]} 16...
Nd6 {[%clk 0:04:31.3]} 17. Qc2 {[%clk 0:04:41.2]} 17... Rac8 {[%clk 0:04:28.9]}
18. f3 {[%clk 0:04:38.6]} 18... f6 {[%clk 0:04:27.8]} 19. Rfd1 {[%clk
0:04:35.9]} 19... c6 {[%clk 0:04:22.7]} 20. dxc6 {[%clk 0:04:34.3]} 20... Rxc6
{[%clk 0:04:21.7]} 21. Qb3+ {[%clk 0:04:33.3]} 21... Kh8 {[%clk 0:04:20]} 22.
Rd2 {[%clk 0:04:24.3]} 22... Qc7 {[%clk 0:04:17]} 23. Rad1 {[%clk 0:04:22.8]}
23... Nf7 {[%clk 0:03:56.1]} 24. Rd7 {[%clk 0:04:19]} 24... Qc8 {[%clk
0:03:54.3]} 25. Rxf7 {[%clk 0:04:15.2]} 1-0

[Event "Live Chess"]
[Site "Chess.com"]
[Date "2024.06.01"]
[Round "-"]
[White "cymbalshift"]
[Black "jellhhggffhjjjjjj"]
[Result "1-0"]
[WhiteElo "1493"]
[BlackElo "319"]
[TimeControl "300"]
[EndTime "14:07:13 PDT"]
[Termination "cymbalshift won by checkmate"]

1. d4 {[%clk 0:04:57.5]} 1... e5 {[%clk 0:04:57.9]} 2. d5 {[%clk 0:04:44]} 2...
Bc5 {[%clk 0:04:55]} 3. c4 {[%clk 0:04:40]} 3... Nf6 {[%clk 0:04:53.2]} 4. Nc3
{[%clk 0:04:38.9]} 4... d6 {[%clk 0:04:50.8]} 5. a3 {[%clk 0:04:37.7]} 5... b5
{[%clk 0:04:46.1]} 6. cxb5 {[%clk 0:04:34.2]} 6... a6 {[%clk 0:04:41.7]} 7. b4
{[%clk 0:04:31.7]} 7... Bb6 {[%clk 0:04:39.9]} 8. e4 {[%clk 0:04:26.3]} 8... c5
{[%clk 0:04:29.4]} 9. bxc6 {[%clk 0:04:23.9]} 9... Qc7 {[%clk 0:04:22.7]} 10.
Bg5 {[%clk 0:04:07.4]} 10... Ng4 {[%clk 0:04:18.6]} 11. Ra2 {[%clk 0:03:51.7]}
11... Nxc6 {[%clk 0:04:03.1]} 12. dxc6 {[%clk 0:03:43.4]} 12... Qxc6 {[%clk
0:04:01.9]} 13. Nd5 {[%clk 0:03:42.6]} 13... Be6 {[%clk 0:03:54.1]} 14. Rc2
{[%clk 0:03:32.7]} 14... Qd7 {[%clk 0:03:29.2]} 15. Nxb6 {[%clk 0:03:29.2]}
15... Qb7 {[%clk 0:03:19.7]} 16. Nxa8 {[%clk 0:03:22.7]} 16... Qxa8 {[%clk
0:03:17.7]} 17. Qxd6 {[%clk 0:03:20.8]} 17... Qxe4+ {[%clk 0:03:09.2]} 18. Re2
{[%clk 0:03:12.9]} 18... Qb1+ {[%clk 0:03:06]} 19. Qd1 {[%clk 0:03:11.5]} 19...
Qxd1+ {[%clk 0:02:42.1]} 20. Kxd1 {[%clk 0:03:10]} 20... Bc4 {[%clk 0:02:40.6]}
21. Rd2 {[%clk 0:02:53.6]} 21... Bxf1 {[%clk 0:02:34.4]} 22. Rd8# {[%clk
0:02:51.7]} 1-0

[Event "Live Chess"]
[Site "Chess.com"]
[Date "2024.06.01"]
[Round "-"]
[White "anatoliy10912"]
[Black "crais6"]
[Result "1-0"]
[WhiteElo "1740"]
[BlackElo "1619"]
[TimeControl "300"]
[EndTime "14:07:29 PDT"]
[Termination "anatoliy10912 won by resignation"]

1. e4 {[%clk 0:04:56.4]} 1... c5 {[%clk 0:04:55.4]} 2. Nf3 {[%clk 0:04:49.9]}
2... Nc6 {[%clk 0:04:52.8]} 3. d4 {[%clk 0:04:49.1]} 3... cxd4 {[%clk 0:04:50]}
4. Nxd4 {[%clk 0:04:49]} 4... e5 {[%clk 0:04:47.8]} 5. Nb5 {[%clk 0:04:45.2]}
5... d6 {[%clk 0:04:45.5]} 6. N1c3 {[%clk 0:04:43.1]} 6... a6 {[%clk 0:04:44.3]}
7. Na3 {[%clk 0:04:41.9]} 7... Be6 {[%clk 0:04:42.5]} 8. Bc4 {[%clk 0:04:38]}
8... Be7 {[%clk 0:04:38.7]} 9. Bxe6 {[%clk 0:04:34.8]} 9... fxe6 {[%clk
0:04:36.6]} 10. Qg4 {[%clk 0:04:31.7]} 10... Nd4 {[%clk 0:04:26.2]} 11. Qxg7
{[%clk 0:04:11.1]} 11... Bf6 {[%clk 0:04:23.1]} 12. Qg4 {[%clk 0:04:08.1]} 12...
Ne7 {[%clk 0:04:18.7]} 13. Be3 {[%clk 0:04:01]} 13... Rg8 {[%clk 0:04:11.5]} 14.
Qh3 {[%clk 0:03:52.3]} 14... Nec6 {[%clk 0:03:38.7]} 15. Ne2 {[%clk 0:03:35.4]}
15... Qe7 {[%clk 0:03:23.4]} 16. Bd2 {[%clk 0:02:51.1]} 16... O-O-O {[%clk
0:03:19]} 17. Nxd4 {[%clk 0:02:47]} 17... exd4 {[%clk 0:03:13.1]} 18. O-O-O
{[%clk 0:02:45]} 18... Kb8 {[%clk 0:02:53.8]} 19. Nc4 {[%clk 0:02:30.5]} 19...
d5 {[%clk 0:02:35.1]} 20. exd5 {[%clk 0:02:21]} 20... Rxd5 {[%clk 0:02:31.4]}
21. Rhe1 {[%clk 0:02:11.3]} 21... e5 {[%clk 0:02:27.7]} 22. f4 {[%clk
0:02:02.9]} 22... Qg7 {[%clk 0:02:10.7]} 23. fxe5 {[%clk 0:01:53.9]} 23... Nxe5
{[%clk 0:02:07.4]} 24. Bf4 {[%clk 0:01:42.3]} 24... Ka7 {[%clk 0:01:57.8]} 25.
Bxe5 {[%clk 0:01:22]} 25... Bxe5 {[%clk 0:01:54.6]} 26. Nxe5 {[%clk 0:01:18.7]}
26... Rxe5 {[%clk 0:01:52.1]} 27. Rxe5 {[%clk 0:01:11.1]} 27... Qxe5 {[%clk
0:01:50.8]} 28. Qxh7 {[%clk 0:01:05.9]} 28... Rxg2 {[%clk 0:01:46.6]} 29. h4
{[%clk 0:00:58.6]} 29... Qe3+ {[%clk 0:01:35.1]} 30. Kb1 {[%clk 0:00:56]} 30...
Qe2 {[%clk 0:01:32.3]} 31. Qd3 {[%clk 0:00:53]} 31... Qg4 {[%clk 0:01:23.6]} 32.
b3 {[%clk 0:00:40.2]} 32... Qxh4 {[%clk 0:01:18.5]} 33. Qxd4+ {[%clk 0:00:39.2]}
33... Ka8 {[%clk 0:01:06.9]} 34. Qxh4 {[%clk 0:00:37.4]} 1-0

[Event "Live Chess"]
[Site "Chess.com"]
[Date "2024.06.01"]
[Round "-"]
[White "dhairyapandyauk"]
[Black "gmnorfolk"]
[Result "0-1"]
[WhiteElo "1704"]
[BlackElo "2075"]
[TimeControl "300"]
[EndTime "14:07:49 PDT"]
[Termination "gmnorfolk won by resignation"]

1. e4 {[%clk 0:04:58.4]} 1... c5 {[%clk 0:04:58.5]} 2. c3 {[%clk 0:04:57.6]}
2... e6 {[%clk 0:04:54.2]} 3. d4 {[%clk 0:04:56.2]} 3... d5 {[%clk 0:04:50]} 4.
exd5 {[%clk 0:04:55.7]} 4... Qxd5 {[%clk 0:04:47.8]} 5. Be3 {[%clk 0:04:51.6]}
5... cxd4 {[%clk 0:04:43.9]} 6. Qxd4 {[%clk 0:04:50.2]} 6... Qxd4 {[%clk
0:04:42]} 7. Bxd4 {[%clk 0:04:49.8]} 7... Nc6 {[%clk 0:04:40.9]} 8. Be3 {[%clk
0:04:49.4]} 8... Nf6 {[%clk 0:04:39.1]} 9. Bd3 {[%clk 0:04:48.5]} 9... Nd5
{[%clk 0:04:37.9]} 10. Bc1 {[%clk 0:04:45.7]} 10... Bd6 {[%clk 0:04:35.3]} 11.
Nd2 {[%clk 0:04:44.4]} 11... Nf4 {[%clk 0:04:33.2]} 12. Bf1 {[%clk 0:04:42.7]}
12... O-O {[%clk 0:04:27.2]} 13. Ne4 {[%clk 0:04:41.8]} 13... Bc7 {[%clk
0:04:26.3]} 14. Nf3 {[%clk 0:04:39.2]} 14... f5 {[%clk 0:04:24.1]} 15. Nc5
{[%clk 0:04:32.7]} 15... Nd5 {[%clk 0:04:16.4]} 16. Bc4 {[%clk 0:04:29.6]} 16...
b6 {[%clk 0:04:11.5]} 17. Nxe6 {[%clk 0:04:12.3]} 17... Bxe6 {[%clk 0:04:09.7]}
18. Ng5 {[%clk 0:04:11.4]} 18... Rae8 {[%clk 0:04:07.1]} 19. Nxe6 {[%clk
0:04:09.5]} 19... Rxe6+ {[%clk 0:04:05.9]} 20. Kf1 {[%clk 0:04:08]} 20... Nce7
{[%clk 0:04:03.2]} 21. Bg5 {[%clk 0:04:06.4]} 21... Rd8 {[%clk 0:03:57.4]} 22.
Bxe7 {[%clk 0:03:56.6]} 22... Rxe7 {[%clk 0:03:54.7]} 23. f3 {[%clk 0:03:55]}
23... Kf8 {[%clk 0:03:52.3]} 24. Kf2 {[%clk 0:03:51.9]} 24... Nf6 {[%clk
0:03:45.7]} 25. g3 {[%clk 0:03:45.5]} 25... Rd2+ {[%clk 0:03:38.5]} 26. Kf1
{[%clk 0:03:44.8]} 26... Rxb2 {[%clk 0:03:33.4]} 27. Re1 {[%clk 0:03:43.2]}
27... Rxe1+ {[%clk 0:03:31.1]} 28. Kxe1 {[%clk 0:03:42.8]} 28... Rb1+ {[%clk
0:03:30.3]} 0-1

[Event "Live Chess"]
[Site "Chess.com"]
[Date "2024.06.01"]
[Round "-"]
[White "oscalik"]
[Black "lyricalschemes"]
[Result "0-1"]
[WhiteElo "2324"]
[BlackElo "2393"]
[TimeControl "300"]
[EndTime "14:08:00 PDT"]
[Termination "lyricalschemes won by checkmate"]

1. e4 {[%clk 0:04:57.4]} 1... Nf6 {[%clk 0:04:53.5]} 2. e5 {[%clk 0:04:56.3]}
2... Nd5 {[%clk 0:04:51.3]} 3. Nc3 {[%clk 0:04:55.1]} 3... Nxc3 {[%clk
0:04:49.7]} 4. dxc3 {[%clk 0:04:54.7]} 4... Nc6 {[%clk 0:04:48.4]} 5. Nf3 {[%clk
0:04:51.7]} 5... d6 {[%clk 0:04:46.1]} 6. Bf4 {[%clk 0:04:46.1]} 6... Bg4 {[%clk
0:04:43.2]} 7. h3 {[%clk 0:04:42.4]} 7... Bxf3 {[%clk 0:04:39.8]} 8. Qxf3 {[%clk
0:04:42.3]} 8... dxe5 {[%clk 0:04:38.7]} 9. Rd1 {[%clk 0:04:37.2]} 9... Qc8
{[%clk 0:04:34.4]} 10. Bb5 {[%clk 0:04:31.5]} 10... Qe6 {[%clk 0:04:24.1]} 11.
Bg3 {[%clk 0:04:08.6]} 11... g6 {[%clk 0:04:19.8]} 12. O-O {[%clk 0:03:57.3]}
12... Bg7 {[%clk 0:04:18]} 13. Bxc6+ {[%clk 0:03:56.7]} 13... bxc6 {[%clk
0:04:16.9]} 14. Rfe1 {[%clk 0:03:55.6]} 14... O-O {[%clk 0:04:15.2]} 15. Qe3
{[%clk 0:03:11.4]} 15... f6 {[%clk 0:04:01]} 16. b3 {[%clk 0:03:05.7]} 16... a5
{[%clk 0:03:58.4]} 17. a4 {[%clk 0:02:56.9]} 17... Rfd8 {[%clk 0:03:56.2]} 18.
Qc5 {[%clk 0:02:52.2]} 18... Rd5 {[%clk 0:03:47.9]} 19. Rxd5 {[%clk 0:02:46.5]}
19... Qxd5 {[%clk 0:03:46.4]} 20. Qxe7 {[%clk 0:02:45]} 20... Qd6 {[%clk
0:03:46.1]} 21. Qxd6 {[%clk 0:02:35.8]} 21... cxd6 {[%clk 0:03:46]} 22. c4
{[%clk 0:02:34.3]} 22... Kf7 {[%clk 0:03:45]} 23. Rd1 {[%clk 0:02:32.6]} 23...
Ke6 {[%clk 0:03:42.3]} 24. f3 {[%clk 0:02:29.6]} 24... Bf8 {[%clk 0:03:33.5]}
25. Kf1 {[%clk 0:02:27.4]} 25... d5 {[%clk 0:03:32.7]} 26. cxd5+ {[%clk
0:02:25.7]} 26... cxd5 {[%clk 0:03:32]} 27. Be1 {[%clk 0:02:24.9]} 27... Rc8
{[%clk 0:03:26.8]} 28. c3 {[%clk 0:02:19.9]} 28... Rb8 {[%clk 0:03:25.2]} 29.
Rb1 {[%clk 0:02:17.6]} 29... Bc5 {[%clk 0:03:21.1]} 30. Ke2 {[%clk 0:02:16.1]}
30... f5 {[%clk 0:03:17.7]} 31. Kd3 {[%clk 0:02:14.8]} 31... e4+ {[%clk
0:03:17.1]} 32. Ke2 {[%clk 0:02:11.2]} 32... Rb7 {[%clk 0:03:11.3]} 33. b4
{[%clk 0:02:10]} 33... axb4 {[%clk 0:03:10.2]} 34. cxb4 {[%clk 0:02:09.9]} 34...
d4 {[%clk 0:03:07.5]} 35. a5 {[%clk 0:01:55]} 35... d3+ {[%clk 0:03:01.6]} 36.
Kd1 {[%clk 0:01:54.2]} 36... Kd5 {[%clk 0:02:52.1]} 37. a6 {[%clk 0:01:52.5]}
37... Rb8 {[%clk 0:02:50.2]} 38. fxe4+ {[%clk 0:01:42.7]} 38... fxe4 {[%clk
0:02:49.3]} 39. Bg3 {[%clk 0:01:39.5]} 39... Bd6 {[%clk 0:02:27.4]} 40. Bxd6
{[%clk 0:01:29.5]} 40... Kxd6 {[%clk 0:02:27.3]} 41. b5 {[%clk 0:01:26.4]} 41...
Kc5 {[%clk 0:02:22.5]} 42. a7 {[%clk 0:01:25.8]} 42... Ra8 {[%clk 0:02:21.9]}
43. b6 {[%clk 0:01:25.3]} 43... e3 {[%clk 0:02:18.7]} 44. b7 {[%clk 0:01:24.1]}
44... Rf8 {[%clk 0:02:18.1]} 45. b8=Q {[%clk 0:01:23]} 45... Rf1# {[%clk
0:02:17]} 0-1

[Event "Live Chess"]
[Site "Chess.com"]
[Date "2024.06.01"]
[Round "-"]
[White "Zhevzh1k7"]
[Black "kingside_rook"]
[Result "0-1"]
[WhiteElo "1105"]
[BlackElo "1995"]
[TimeControl "300"]
[EndTime "14:08:12 PDT"]
[Termination "kingside_rook won by checkmate"]

1. e4 {[%clk 0:04:57.4]} 1... e5 {[%clk 0:04:58.2]} 2. Nf3 {[%clk 0:04:55.3]}
2... Nc6 {[%clk 0:04:57.4]} 3. Bc4 {[%clk 0:04:53.6]} 3... Nf6 {[%clk
0:04:56.5]} 4. Nc3 {[%clk 0:04:50.8]} 4... Bc5 {[%clk 0:04:55.4]} 5. O-O {[%clk
0:04:37.1]} 5... d6 {[%clk 0:04:54.5]} 6. d3 {[%clk 0:04:34]} 6... Bg4 {[%clk
0:04:52.7]} 7. Be3 {[%clk 0:04:31.8]} 7... Nd4 {[%clk 0:04:45.7]} 8. Nd5 {[%clk
0:04:02.4]} 8... Nxd5 {[%clk 0:04:44.2]} 9. Bxd5 {[%clk 0:03:58.4]} 9... Nxf3+
{[%clk 0:04:42.6]} 10. gxf3 {[%clk 0:03:55.4]} 10... Bh3 {[%clk 0:04:42.5]} 11.
Re1 {[%clk 0:03:50.3]} 11... Bxe3 {[%clk 0:04:40.6]} 12. fxe3 {[%clk 0:03:49.1]}
12... Qg5+ {[%clk 0:04:39.7]} 13. Kh1 {[%clk 0:03:43.6]} 13... Qg2# {[%clk
0:04:39.6]} 0-1

[Event "Live Chess"]
[Site "Chess.com"]
[Date "2024.06.01"]
[Round "-"]
[White "agamilewska"]
[Black "Queensandpawns"]
[Result "1/2-1/2"]
[WhiteElo "1765"]
[BlackElo "2374"]
[TimeControl "300"]
[EndTime "14:08:14 PDT"]
[Termination "Game drawn - timeout vs insufficient material"]

1. d4 {[%clk 0:04:53]} 1... e5 {[%clk 0:04:59.9]} 2. dxe5 {[%clk 0:04:51.9]}
2... Nc6 {[%clk 0:04:59.6]} 3. Nf3 {[%clk 0:04:47.9]} 3... Qe7 {[%clk
0:04:59.5]} 4. e4 {[%clk 0:04:45.5]} 4... Nxe5 {[%clk 0:04:57.9]} 5. Nxe5 {[%clk
0:04:45.1]} 5... Qxe5 {[%clk 0:04:57.8]} 6. Bd3 {[%clk 0:04:44.1]} 6... Bc5
{[%clk 0:04:56.5]} 7. O-O {[%clk 0:04:41.4]} 7... d6 {[%clk 0:04:55.9]} 8. Nc3
{[%clk 0:04:40.2]} 8... Qe7 {[%clk 0:04:55.2]} 9. Kh1 {[%clk 0:04:38.9]} 9...
Qd8 {[%clk 0:04:55.1]} 10. f4 {[%clk 0:04:37]} 10... Nf6 {[%clk 0:04:55]} 11. e5
{[%clk 0:04:33.3]} 11... Ng4 {[%clk 0:04:53.4]} 12. Qf3 {[%clk 0:04:21.9]} 12...
Qh4 {[%clk 0:04:51.9]} 13. h3 {[%clk 0:04:13]} 13... Nf2+ {[%clk 0:04:45.2]} 14.
Kh2 {[%clk 0:04:07.4]} 14... Ng4+ {[%clk 0:04:41.3]} 15. Kh1 {[%clk 0:04:03.7]}
15... dxe5 {[%clk 0:04:31.6]} 16. fxe5 {[%clk 0:03:59.3]} 16... Nxe5 {[%clk
0:04:31.5]} 17. Qd5 {[%clk 0:03:48.4]} 17... Bxh3 {[%clk 0:04:25.4]} 18. Qxe5+
{[%clk 0:03:44.2]} 18... Be6+ {[%clk 0:04:20.6]} 19. Qh2 {[%clk 0:03:41.2]}
19... Qe7 {[%clk 0:04:18.2]} 20. Bf4 {[%clk 0:03:30.3]} 20... O-O-O {[%clk
0:04:16.1]} 21. Rae1 {[%clk 0:03:22.3]} 21... g5 {[%clk 0:04:13]} 22. Be5 {[%clk
0:02:42.8]} 22... Rhf8 {[%clk 0:03:59.6]} 23. Bf6 {[%clk 0:02:42]} 23... Qd7
{[%clk 0:03:56.3]} 24. Bxd8 {[%clk 0:02:41.1]} 24... Rxd8 {[%clk 0:03:56.2]} 25.
Ne4 {[%clk 0:02:30.1]} 25... Be7 {[%clk 0:03:51.1]} 26. Nf6 {[%clk 0:02:23]}
26... Qd4 {[%clk 0:03:42.7]} 27. Ne4 {[%clk 0:01:45.8]} 27... Rd5 {[%clk
0:03:34.1]} 28. g4 {[%clk 0:01:33]} 28... Re5 {[%clk 0:03:30.8]} 29. Qxh7 {[%clk
0:01:20.5]} 29... Bd5 {[%clk 0:03:26.4]} 30. Kg2 {[%clk 0:01:03.4]} 30... c5
{[%clk 0:03:17.5]} 31. Qh8+ {[%clk 0:00:55.3]} 31... Kd7 {[%clk 0:03:14.4]} 32.
Kg3 {[%clk 0:00:50.1]} 32... Bxe4 {[%clk 0:03:09.5]} 33. Bxe4 {[%clk 0:00:45.5]}
33... Rxe4 {[%clk 0:03:03]} 34. Qxd4+ {[%clk 0:00:34.4]} 34... Rxd4 {[%clk
0:03:02.9]} 35. Rxf7 {[%clk 0:00:33]} 35... Kc6 {[%clk 0:02:54.6]} 36. Rexe7
{[%clk 0:00:29.8]} 36... b6 {[%clk 0:02:53.5]} 37. Rc7+ {[%clk 0:00:28.8]} 37...
Kb5 {[%clk 0:02:52.5]} 38. Rxa7 {[%clk 0:00:27.5]} 38... Rd2 {[%clk 0:02:52]}
39. Rab7 {[%clk 0:00:24.1]} 39... Rxc2 {[%clk 0:02:50]} 40. Rf6 {[%clk
0:00:23.4]} 40... Kc4 {[%clk 0:02:48.8]} 41. Rbxb6 {[%clk 0:00:22]} 41... Rc1
{[%clk 0:02:47.8]} 42. b3+ {[%clk 0:00:20.4]} 42... Kc3 {[%clk 0:02:46.8]} 43.
Rfc6 {[%clk 0:00:19.6]} 43... Kb2 {[%clk 0:02:46.1]} 44. Rb5 {[%clk 0:00:18.2]}
44... Rc3+ {[%clk 0:02:45.7]} 45. Kf2 {[%clk 0:00:16]} 45... Rc2+ {[%clk
0:02:45.6]} 46. Ke3 {[%clk 0:00:15.6]} 46... Rc3+ {[%clk 0:02:45]} 47. Kd2
{[%clk 0:00:15.1]} 47... Rc1 {[%clk 0:02:44.9]} 48. Kd3 {[%clk 0:00:14.7]} 48...
Rd1+ {[%clk 0:02:44.1]} 49. Ke2 {[%clk 0:00:13.7]} 49... Rd4 {[%clk 0:02:41.9]}
50. Rbxc5 {[%clk 0:00:13.6]} 50... Rxg4 {[%clk 0:02:40.6]} 51. Rc2+ {[%clk
0:00:12.9]} 51... Ka3 {[%clk 0:02:40.1]} 52. Ra6+ {[%clk 0:00:12.1]} 52... Kb4
{[%clk 0:02:38.9]} 53. Rc4+ {[%clk 0:00:11.8]} 53... Rxc4 {[%clk 0:02:38.1]} 54.
bxc4 {[%clk 0:00:11.7]} 54... Kxc4 {[%clk 0:02:38]} 55. Ra4+ {[%clk 0:00:10.1]}
55... Kb5 {[%clk 0:02:36.5]} 56. Rg4 {[%clk 0:00:09.4]} 56... Kc5 {[%clk
0:02:34]} 57. Rxg5+ {[%clk 0:00:09.1]} 57... Kb4 {[%clk 0:02:33.9]} 58. Kd2
{[%clk 0:00:08.3]} 58... Ka3 {[%clk 0:02:33.8]} 59. Ra5+ {[%clk 0:00:06.3]}
59... Kb4 {[%clk 0:02:33]} 60. Ra8 {[%clk 0:00:05.6]} 60... Kb5 {[%clk
0:02:32.2]} 61. a4+ {[%clk 0:00:05.5]} 61... Kb4 {[%clk 0:02:31.9]} 62. a5
{[%clk 0:00:04.7]} 62... Kb5 {[%clk 0:02:31.8]} 63. a6 {[%clk 0:00:04.1]} 63...
Kb6 {[%clk 0:02:31.7]} 64. a7 {[%clk 0:00:03.2]} 64... Kb7 {[%clk 0:02:31.6]}
65. Rh8 {[%clk 0:00:02.5]} 65... Kxa7 {[%clk 0:02:31.2]} 66. Kc3 {[%clk
0:00:02.3]} 66... Kb7 {[%clk 0:02:31.1]} 67. Kb4 {[%clk 0:00:01.7]} 67... Kc6
{[%clk 0:02:31]} 68. Rh5 {[%clk 0:00:01]} 68... Kd6 {[%clk 0:02:30.9]} 69. Kc4
{[%clk 0:00:00.3]} 69... Ke6 {[%clk 0:02:29.9]} 1/2-1/2

[Event "Live Chess"]
[Site "Chess.com"]
[Date "2024.06.01"]
[Round "-"]
[White "matt1979"]
[Black "Mangoalo"]
[Result "1-0"]
[WhiteElo "1376"]
[BlackElo "1062"]
[TimeControl "300"]
[EndTime "14:08:18 PDT"]
[Termination "matt1979 won by resignation"]

1. f4 {[%clk 0:04:58.3]} 1... g5 {[%clk 0:04:54.8]} 2. fxg5 {[%clk 0:04:53]}
2... Bg7 {[%clk 0:04:54.2]} 3. Nf3 {[%clk 0:04:50]} 3... f6 {[%clk 0:04:52.4]}
4. gxf6 {[%clk 0:04:47.4]} 4... Nxf6 {[%clk 0:04:52.3]} 5. d4 {[%clk 0:04:45.7]}
5... d5 {[%clk 0:04:47]} 6. e3 {[%clk 0:04:41.1]} 6... Nc6 {[%clk 0:04:44.8]} 7.
c3 {[%clk 0:04:38.4]} 7... Bg4 {[%clk 0:04:41.3]} 8. Bd3 {[%clk 0:04:33.5]} 8...
Qd6 {[%clk 0:04:37.3]} 9. O-O {[%clk 0:04:30.8]} 9... O-O-O {[%clk 0:04:32.6]}
10. h3 {[%clk 0:04:25.7]} 10... Bxf3 {[%clk 0:04:30.4]} 11. Qxf3 {[%clk
0:04:23.8]} 11... Kb8 {[%clk 0:04:26.9]} 12. Na3 {[%clk 0:04:16.5]} 12... Rhf8
{[%clk 0:04:24.4]} 13. Qe2 {[%clk 0:04:12.6]} 13... Ne4 {[%clk 0:04:21.9]} 14.
Bxe4 {[%clk 0:04:10.2]} 14... Rxf1+ {[%clk 0:04:19.4]} 15. Qxf1 {[%clk
0:04:06.7]} 15... dxe4 {[%clk 0:04:19.3]} 16. Nc4 {[%clk 0:04:01.1]} 16... Qg6
{[%clk 0:04:07.1]} 17. Bd2 {[%clk 0:03:47.2]} 17... Rf8 {[%clk 0:03:59.5]} 18.
Qe2 {[%clk 0:03:45.5]} 18... Rg8 {[%clk 0:03:55.1]} 19. Rf1 {[%clk 0:03:39.6]}
19... Bh6 {[%clk 0:03:43.5]} 20. Qf2 {[%clk 0:03:08.4]} 20... Nd8 {[%clk
0:03:29.6]} 21. Ne5 {[%clk 0:03:03.6]} 21... Qg7 {[%clk 0:03:24.7]} 22. Ng4
{[%clk 0:02:54.3]} 22... Bg5 {[%clk 0:03:18.6]} 23. Qe2 {[%clk 0:02:37.4]} 23...
Ne6 {[%clk 0:03:09.2]} 24. d5 {[%clk 0:02:31.2]} 24... Nc5 {[%clk 0:03:01.9]}
25. Be1 {[%clk 0:01:58.8]} 25... Nd3 {[%clk 0:02:58.7]} 26. b4 {[%clk
0:01:40.3]} 26... Qh6 {[%clk 0:02:53.1]} 27. Bg3 {[%clk 0:01:22.9]} 27... Bxe3+
{[%clk 0:02:48.9]} 28. Nxe3 {[%clk 0:01:19.2]} 28... Rxg3 {[%clk 0:02:42]} 29.
Nf5 {[%clk 0:01:12.7]} 29... Qg6 {[%clk 0:02:19.8]} 30. Nxg3 {[%clk 0:01:11.2]}
30... b6 {[%clk 0:02:13.4]} 31. Nxe4 {[%clk 0:01:03.9]} 31... Qd6 {[%clk
0:01:53.5]} 32. Qxd3 {[%clk 0:01:00.2]} 32... e5 {[%clk 0:01:50.7]} 33. Nxd6
{[%clk 0:00:59]} 1-0

[Event "Live Chess"]
[Site "Chess.com"]
[Date "2024.06.01"]
[Round "-"]
[White "educatedlad"]
[Black "Duke_of_Bebington"]
[Result "0-1"]
[WhiteElo "1713"]
[BlackElo "1637"]
[TimeControl "300"]
[EndTime "14:08:32 PDT"]
[Termination "Duke_of_Bebington won by resignation"]

1. d4 {[%clk 0:04:59.1]} 1... d5 {[%clk 0:04:58.7]} 2. c4 {[%clk 0:04:56.7]}
2... c6 {[%clk 0:04:57.6]} 3. Nc3 {[%clk 0:04:56.1]} 3... e5 {[%clk 0:04:56.8]}
4. c5 {[%clk 0:04:54.3]} 4... e4 {[%clk 0:04:42.3]} 5. e3 {[%clk 0:04:48.8]}
5... Nf6 {[%clk 0:04:37.1]} 6. Be2 {[%clk 0:04:46]} 6... a5 {[%clk 0:04:35.6]}
7. a4 {[%clk 0:04:44.5]} 7... b6 {[%clk 0:04:34.2]} 8. cxb6 {[%clk 0:04:41.2]}
8... Qxb6 {[%clk 0:04:33.4]} 9. Nh3 {[%clk 0:04:34.9]} 9... Bd6 {[%clk
0:04:29.6]} 10. Ng5 {[%clk 0:04:32.8]} 10... h6 {[%clk 0:04:23.9]} 11. Nxf7
{[%clk 0:04:29.2]} 11... Kxf7 {[%clk 0:04:22.8]} 12. Bh5+ {[%clk 0:04:29.1]}
12... Nxh5 {[%clk 0:04:19.7]} 13. Qxh5+ {[%clk 0:04:27.5]} 13... g6 {[%clk
0:04:16.9]} 14. Qe2 {[%clk 0:04:24.1]} 14... Rf8 {[%clk 0:04:10.5]} 15. O-O
{[%clk 0:04:23.3]} 15... Kg7 {[%clk 0:04:09.7]} 16. f3 {[%clk 0:04:22.5]} 16...
exf3 {[%clk 0:04:07.7]} 17. Rxf3 {[%clk 0:04:19.8]} 17... Rxf3 {[%clk
0:04:06.5]} 18. Qxf3 {[%clk 0:04:18.5]} 18... Bf5 {[%clk 0:04:03.9]} 19. g4
{[%clk 0:04:11.7]} 19... Bd3 {[%clk 0:03:50]} 20. e4 {[%clk 0:04:09.5]} 20...
dxe4 {[%clk 0:03:48]} 21. Nxe4 {[%clk 0:04:06.4]} 21... Qxd4+ {[%clk 0:03:44.9]}
22. Be3 {[%clk 0:04:04.5]} 22... Qxe4 {[%clk 0:03:41.9]} 23. Qf2 {[%clk
0:03:59.9]} 23... Qxg4+ {[%clk 0:03:32.6]} 24. Kh1 {[%clk 0:03:58.6]} 24... Be4+
{[%clk 0:03:31.4]} 0-1